fUSD/lending_fUSD_20250826
["ID","MTS","AMOUNT","RATE_DAILY","PERIOD"]
[381401234,1756186971699,-1833.52,0.00033485,60]
[381401235,1756186971733,-150.0,0.00033524,120]
[381401236,1756186971763,-1833.52,0.00033585,60]
[381401237,1756186971793,-150.0,0.00033603,120]
[381401238,1756186971826,-150.0,0.00033654,120]
[381401239,1756186971856,-1833.52,0.00033685,60]
[381401240,1756186971885,-3299.69,0.00033698,120]
[381401241,1756186971917,-1000.0,0.000337,120]
[381401242,1756186971945,-150.0,0.00033741,120]
[381401243,1756186971974,-150.0,0.00033771,120]
[381401244,1756186972004,-150.0,0.00033779,120]
[381401245,1756186972034,-1833.52,0.00033785,60]
[381401246,1756186972062,-1049.58,0.000338,120]
[381401247,1756186972093,-150.0,0.0003383,120]
[381401248,1756186972123,-150.0,0.0003384,120]
[381401249,1756186972154,-1833.52,0.00033885,60]
[381401250,1756186972183,-150.0,0.00033915,120]
[381401251,1756186972211,-500.0,0.00033939,60]
[381401252,1756186972240,-1833.52,0.00033985,60]
[381401253,1756186972268,-2858.81055726,0.00034,120]
[381401254,1756186972296,-400.0,0.00034,120]
[381401255,1756186972325,-150.0,0.0003401,120]
[381401256,1756186972354,-150.0,0.00034045,120]
[381401257,1756186972383,-150.0,0.00034057,120]
[381401258,1756186972415,-150.0,0.00034075,120]
[381401259,1756186972444,-1833.52,0.00034085,60]
[381401260,1756186972475,-150.0,0.00034126,120]
[381401261,1756186972504,-150.0,0.00034132,120]
[381401262,1756186972534,-150.0,0.00034149,120]
[381401263,1756186972563,-150.0,0.00034183,120]
[381401264,1756186972594,-1833.52,0.00034185,60]
[381401265,1756186972623,-1000.0,0.000342,120]
[381401266,1756186972653,-600.0,0.00034247,120]
[381401267,1756186972683,-150.0,0.00034247,120]
[381401268,1756186972713,-150.0,0.00034256,120]
[381401269,1756186972742,-150.0,0.00034266,120]
[381401270,1756186972771,-150.0,0.00034269,120]
[381401271,1756186972804,-1833.52,0.00034285,60]
[381401272,1756186972833,-150.0,0.00034293,120]
[381401273,1756186972863,-150.0,0.0003432,120]
[381401274,1756186972895,-1833.52,0.00034385,60]
[381401275,1756186972927,-150.0,0.00034399,120]
[381401276,1756186972955,-150.0,0.00034405,120]
[381401277,1756186972983,-150.0,0.0003441,120]
[381401278,1756186973013,-1833.52,0.00034485,60]
[381401279,1756186973041,-150.0,0.00034579,120]
[381401280,1756186973070,-1833.52,0.00034585,60]
[381401281,1756186973100,-150.0,0.00034654,120]
[381401282,1756186973132,-1833.52,0.00034685,60]
[381401283,1756186973163,-150.0,0.00034745,120]
[381401284,1756186973197,-150.0,0.00034762,120]
[381401285,1756186973228,-1833.52,0.00034785,60]
[381401286,1756186973261,-150.0,0.00034816,120]
[381401287,1756186973290,-500.0,0.00034821,60]
[381401288,1756186973318,-150.0,0.00034834,120]
[381401289,1756186973346,-150.0,0.00034867,120]
[381401290,1756186973381,-1833.52,0.00034885,60]
[381401291,1756186973411,-150.0,0.00034902,120]
[381401292,1756186973441,-150.0,0.00034971,120]
[381401293,1756186973473,-150.0,0.00034979,120]
[381401294,1756186973503,-1833.52,0.00034985,60]
[381401295,1756186973534,-200.0,0.00035,120]
[381401296,1756186973564,-2498.78134605,0.00035,90]
[381401297,1756186973591,-680.41833812,0.00035,120]
[381401298,1756186973618,-1000.0,0.00035,120]
[381401299,1756186973643,-217.0,0.00035,120]
[381401300,1756186973669,-1180.0,0.00035,60]
[381401301,1756186973696,-1378.57505132,0.00035,120]
[381401302,1756186973723,-150.0,0.00035018,120]
[381401303,1756186973750,-150.0,0.00035033,120]
[381401304,1756186973779,-1833.52,0.00035085,60]
[381401305,1756186973807,-1049.58,0.000351,120]
[381401306,1756186973836,-1833.52,0.00035185,60]
[381401307,1756186974187,-1833.52,0.00035285,60]
[381401308,1756186974217,-1833.52,0.00035385,60]
[381401309,1756186974248,-1833.52,0.00035485,60]
[381401310,1756186974276,-172.26192982,0.000355,120]
[381401311,1756186974306,-1833.52,0.00035585,60]
[381401312,1756186974332,-1022.0,0.00035616,90]
[381401313,1756186974361,-1833.52,0.00035685,60]
[381401314,1756186974394,-500.0,0.00035703,60]
[381401315,1756186974423,-1833.52,0.00035785,60]
[381401316,1756186974452,-1833.52,0.00035885,60]
[381401317,1756186974478,-3299.69,0.0003589,120]
[381401318,1756186974505,-1833.52,0.00035985,60]
[381401319,1756186974530,-449.87,0.00036,120]
[381401320,1756186974557,-1136.13280451,0.00036,120]
[381401321,1756186974583,-300.0,0.00036,120]
[381401322,1756186974611,-1833.52,0.00036085,60]
[381401323,1756186974638,-1833.52,0.00036185,60]
[381401324,1756186974666,-1833.52,0.00036285,60]
[381401325,1756186974693,-1833.52,0.00036385,60]
[381401326,1756186974718,-1049.58,0.000364,120]
[381401327,1756186974746,-1833.52,0.00036485,60]
[381401328,1756186974772,-593.83453975,0.000365,120]
[381401329,1756186974800,-1833.52,0.00036585,60]
[381401330,1756186974826,-500.0,0.00036585,60]
[381401331,1756186974854,-1833.52,0.00036685,60]
[381401332,1756186974881,-537.63077854,0.000367,120]
[381401333,1756186974908,-1833.52,0.00036785,60]
[381401334,1756186974936,-1833.52,0.00036885,60]
[381401335,1756186974963,-1710.87103449,0.000369,120]
[381401336,1756186974991,-315.47679327,0.000369,120]
[381401337,1756186975019,-1833.52,0.00036985,60]
[381401338,1756186975044,-2000.0,0.00036986,120]
[381401339,1756186975070,-2000.0,0.00036986,120]
[381401340,1756186975096,-2000.0,0.00036986,120]
[381401341,1756186975122,-2000.0,0.00036986,120]
[381401342,1756186975147,-2000.0,0.00036986,120]
[381401343,1756186975173,-2000.0,0.00036986,120]
[381401344,1756186975199,-2000.0,0.00036986,120]
[381401345,1756186975224,-2000.0,0.00036986,120]
[381401346,1756186975250,-2000.0,0.00036986,120]
[381401347,1756186975276,-2000.0,0.00036986,120]
[381401348,1756186975303,-2000.0,0.00036986,120]
[381401349,1756186975329,-2000.0,0.00036986,120]
[381401350,1756186975355,-2000.0,0.00036986,120]
[381401351,1756186975383,-2000.0,0.00036986,120]
[381401352,1756186975409,-2000.0,0.00036986,120]
[381401353,1756186975435,-2000.0,0.00036986,120]
[381401354,1756186975460,-2000.0,0.00036986,120]
[381401355,1756186975486,-2000.0,0.00036986,120]
[381401356,1756186975512,-2000.0,0.00036986,120]
[381401357,1756186975538,-2000.0,0.00036986,120]
[381401358,1756186975564,-2000.0,0.00036986,120]
[381401359,1756186975590,-2000.0,0.00036986,120]
[381401360,1756186975616,-2000.0,0.00036986,120]
[381401361,1756186975642,-2000.0,0.00036986,120]
[381401362,1756186975667,-2000.0,0.00036986,120]
[381401363,1756186975692,-2000.0,0.00036986,120]
[381401364,1756186975717,-2000.0,0.00036986,120]
[381401365,1756186975742,-2000.0,0.00036986,120]
[381401366,1756186975767,-2000.0,0.00036986,120]
[381401367,1756186975793,-2000.0,0.00036986,120]
[381401368,1756186975819,-2000.0,0.00036986,120]
[381401369,1756186975844,-2000.0,0.00036986,120]
[381401370,1756186975870,-2000.0,0.00036986,120]
[381401371,1756186975897,-2000.0,0.00036986,120]
[381401372,1756186975925,-520.0,0.00036986,120]
[381401373,1756186975953,-2000.0,0.00036986,120]
[381401374,1756186975983,-451.0,0.00036986,120]
[381401375,1756186976026,-1000.0,0.00037,120]
[381401376,1756186976053,-5459.0,0.00037,117]
[381401377,1756186976081,-1833.52,0.00037085,60]
[381401378,1756186976109,-1833.52,0.00037185,60]
[381401379,1756186976136,-548.81437016,0.000372,120]
[381401380,1756186976162,-548.81437014,0.000372,120]
[381401381,1756186976189,-548.81437014,0.000372,120]
[381401382,1756186976215,-548.81437014,0.000372,120]
[381401383,1756186976242,-548.81437014,0.000372,120]
[381401384,1756186976267,-502.5054867,0.00037212,120]
[381401385,1756186976295,-1833.52,0.00037285,60]
[381401386,1756186976323,-1833.52,0.00037385,60]
[381401387,1756186976349,-500.0,0.00037467,60]
[381401388,1756186976381,-1833.52,0.00037485,60]
[381401389,1756186976411,-1833.52,0.00037585,60]
[381401390,1756186976439,-600.0,0.00037671,120]
[381401391,1756186976469,-1833.52,0.00037685,60]
[381401392,1756186976501,-1444.0,0.00037753,120]
[381401393,1756186976530,-1833.52,0.00037785,60]
[381401394,1756186976557,-210.7630065,0.0003787,120]
[381401395,1756186976587,-1833.52,0.00037885,60]
[381401396,1756186976614,-1833.52,0.00037985,60]
[381401397,1756186976638,-587.90880923,0.00037999,120]
[381401398,1756186976666,-168.0,0.00038,120]
[381401399,1756186976692,-151.0,0.00038,120]
[381401400,1756186976718,-13564.0,0.00038,120]
[381401401,1756186976746,-2640.85551416,0.00038,120]
[381401402,1756186976772,-400.0,0.00038,120]
[381401403,1756186976803,-500.0,0.00038,120]
[381401404,1756186976829,-500.0,0.00038,120]
[381401405,1756186976856,-500.0,0.00038,120]
[381401406,1756186976883,-3000.0,0.00038,120]
[381401407,1756186976910,-3299.69,0.00038082,120]
[381401408,1756186976937,-1833.52,0.00038085,60]
[381401409,1756186976976,-1833.52,0.00038185,60]
[381401410,1756186977284,-1833.52,0.00038285,60]
[381401411,1756186977326,-723.75570434,0.0003835,60]
[381401412,1756186977356,-1833.52,0.00038385,120]
[381401413,1756186977386,-1833.52,0.00038485,120]
[381401414,1756186977412,-1833.52,0.00038585,120]
[381401415,1756186977439,-1833.52,0.00038685,120]
[381401416,1756186977467,-2106.76,0.00038767,120]
[381401417,1756186977493,-1833.52,0.00038785,120]
[381401418,1756186977519,-1833.52,0.00038885,120]
[381401419,1756186977545,-442.88452209,0.00038886,90]
[381401420,1756186977571,-168.0,0.000389,120]
[381401421,1756186977597,-674.43290963,0.000389,120]
[381401422,1756186977624,-1833.52,0.00038985,120]
[381401423,1756186977650,-443.0,0.00038986,90]
[381401424,1756186977677,-921.35243208,0.00039,120]
[381401425,1756186977703,-1484.06381517,0.00039,120]
[381401426,1756186977729,-2288.75517345,0.00039,120]
[381401427,1756186977757,-1639.75755689,0.00039,120]
[381401428,1756186977785,-287.0,0.00039,120]
[381401429,1756186977812,-624.398717,0.00039,120]
[381401430,1756186977838,-2900.0,0.00039,120]
[381401431,1756186977865,-1833.52,0.00039085,120]
[381401432,1756186977893,-1833.52,0.00039185,120]
[381401433,1756186977919,-151.0,0.000392,120]
[381401434,1756186977946,-1833.52,0.00039285,120]
[381401435,1756186977974,-1833.52,0.00039385,120]
[381401436,1756186978001,-1833.52,0.00039485,120]
[381401437,1756186978028,-1833.61670754,0.00039585,120]
[381401438,1756186978052,-1112.31596968,0.000397,120]
[381401439,1756186978079,-155.39094598,0.000397,120]
[381401440,1756186978107,-337.14133604,0.00039762,60]
[381401441,1756186978136,-3127.1773528,0.000398,120]
[381401442,1756186978163,-168.0,0.000398,120]
[381401443,1756186978188,-3013.75053623,0.000398,120]
[381401444,1756186978213,-228.17436703,0.000398,120]
[381401445,1756186978239,-4213.67459231,0.00039858,120]
[381401446,1756186978266,-2174.8,0.000399,120]
[381401447,1756186978291,-3005.0,0.000399,60]
[381401448,1756186978316,-160.8893503,0.000399,120]
[381401449,1756186978342,-160.88935028,0.000399,120]
[381401450,1756186978368,-160.88935028,0.000399,120]
[381401451,1756186978399,-160.88935028,0.000399,120]
[381401452,1756186978428,-160.88935028,0.000399,120]
[381401453,1756186978456,-160.88935028,0.000399,120]
[381401454,1756186978483,-160.88935028,0.000399,120]
[381401455,1756186978509,-160.88935028,0.000399,120]
[381401456,1756186978534,-160.88935028,0.000399,120]
[381401457,1756186978561,-160.88935028,0.000399,120]
[381401458,1756186978589,-4090.06181811,0.0003999,120]
[381401459,1756186978617,-200.0,0.0004,120]
[381401460,1756186978643,-20000.0,0.0004,120]
[381401461,1756186978671,-2578.93515452,0.0004,90]
[381401462,1756186978697,-986.27697444,0.0004,120]
[381401463,1756186978723,-295.94205458,0.0004,120]
[381401464,1756186978748,-2436.35384825,0.0004,120]
[381401465,1756186978773,-836.98847916,0.0004,120]
[381401466,1756186978798,-511.11442776,0.0004,120]
[381401467,1756186978823,-1218.52439278,0.0004,120]
[381401468,1756186978849,-282.3982273,0.0004,80]
[381401469,1756186978876,-370.66572797,0.0004,120]
[381401470,1756186978905,-844.49479001,0.0004,120]
[381401471,1756186978934,-844.49479001,0.0004,120]
[381401472,1756186978963,-400.0,0.0004,120]
[381401473,1756186978992,-2000.0,0.0004,120]
[381401474,1756186979019,-2000.0,0.0004,120]
[381401475,1756186979045,-2476.8589773,0.0004,120]
[381401476,1756186979073,-608.18820084,0.0004,120]
[381401477,1756186979098,-288.1209,0.0004,120]
[381401478,1756186979124,-542.0,0.0004,120]
[381401479,1756186979149,-839.72148273,0.0004,120]
[381401480,1756186979176,-1000.0,0.0004,120]
[381401481,1756186979202,-500.0,0.0004,120]
[381401482,1756186979228,-643.592,0.0004,120]
[381401483,1756186979256,-1241.06,0.0004,120]
[381401484,1756186979283,-645.94,0.0004,120]
[381401485,1756186979312,-202.3,0.0004,120]
[381401486,1756186979338,-219.26,0.0004,120]
[381401487,1756186979364,-2000.0,0.0004,120]
[381401488,1756186979394,-4323.09,0.0004,120]
[381401489,1756186979420,-1380.23,0.0004,120]
[381401490,1756186979448,-3971.37,0.0004,120]
[381401491,1756186979474,-160.0,0.0004,120]
[381401492,1756186979501,-212.18043798,0.0004,120]
[381401493,1756186979528,-3299.69,0.00040273,120]
[381401494,1756186979553,-408.65254325,0.000403,120]
[381401495,1756186979578,-2500.0,0.000404,120]
[381401496,1756186979604,-151.0,0.000405,120]
[381401497,1756186979628,-548.62630013,0.000405,120]
[381401498,1756186979656,-2000.0,0.000405,120]
[381401499,1756186979681,-832.48747779,0.000405,120]
[381401500,1756186979707,-168.0,0.000407,120]
[381401501,1756186979733,-999.0,0.00040849,120]
[381401502,1756186979759,-999.0,0.00040849,120]
[381401503,1756186979786,-999.0,0.00040986,120]
[381401504,1756186979813,-426.77699506,0.00040999,120]
[381401505,1756186979841,-485.33957427,0.00040999,120]
[381401506,1756186979871,-728.08268428,0.00041,120]
[381401507,1756186979900,-1653.88317713,0.00041,120]
[381401508,1756186979925,-2584.55326588,0.00041,120]
[381401509,1756186979950,-2000.0,0.00041,60]
[381401510,1756186979976,-2000.0,0.00041,60]
[381401511,1756186980003,-2000.0,0.00041,60]
[381401512,1756186980287,-2000.0,0.00041,60]
[381401513,1756186980315,-1000.0,0.00041,120]
[381401514,1756186980342,-1000.0,0.00041,120]
[381401515,1756186980369,-174.0,0.00041,90]
[381401516,1756186980399,-200.0,0.00041063,120]
[381401517,1756186980426,-3183.54,0.00041096,120]
[381401518,1756186980453,-1000.0,0.00041096,60]
[381401519,1756186980479,-1019.0,0.00041096,60]
[381401520,1756186980504,-1000.0,0.00041096,60]
[381401521,1756186980530,-1000.0,0.00041096,60]
[381401522,1756186980557,-1000.0,0.00041096,60]
[381401523,1756186980581,-1000.0,0.00041096,60]
[381401524,1756186980607,-1000.0,0.00041096,60]
[381401525,1756186980633,-1000.0,0.00041096,60]
[381401526,1756186980660,-1000.0,0.00041096,60]
[381401527,1756186980685,-1000.0,0.00041096,60]
[381401528,1756186980711,-1000.0,0.00041096,60]
[381401529,1756186980737,-1000.0,0.00041096,60]
[381401530,1756186980765,-600.0,0.00041096,120]
[381401531,1756186980790,-1000.0,0.00041096,60]
[381401532,1756186980816,-1000.0,0.00041096,60]
[381401533,1756186980841,-1000.0,0.00041096,60]
[381401534,1756186980867,-1000.0,0.00041096,60]
[381401535,1756186980893,-1000.0,0.00041096,60]
[381401536,1756186980919,-1000.0,0.00041096,60]
[381401537,1756186980947,-1000.0,0.00041096,60]
[381401538,1756186980975,-1000.0,0.00041096,60]
[381401539,1756186981003,-1000.0,0.00041096,60]
[381401540,1756186981032,-1000.0,0.00041096,60]
[381401541,1756186981062,-1000.0,0.00041096,60]
[381401542,1756186981088,-1000.0,0.00041096,60]
[381401543,1756186981115,-1000.0,0.00041096,60]
[381401544,1756186981140,-1000.0,0.00041096,60]
[381401545,1756186981168,-1000.0,0.00041096,60]
[381401546,1756186981195,-1000.0,0.00041096,60]
[381401547,1756186981220,-1000.0,0.00041096,60]
[381401548,1756186981247,-1000.0,0.00041096,60]
[381401549,1756186981273,-1000.0,0.00041096,60]
[381401550,1756186981301,-1000.0,0.00041096,60]
[381401551,1756186981327,-1000.0,0.00041096,60]
[381401552,1756186981356,-1000.0,0.00041096,60]
[381401553,1756186981387,-1000.0,0.00041096,60]
[381401554,1756186981415,-1000.0,0.00041096,60]
[381401555,1756186981443,-1000.0,0.00041096,60]
[381401556,1756186981474,-1000.0,0.00041096,60]
[381401557,1756186981517,-1000.0,0.00041096,60]
[381401558,1756186981560,-1000.0,0.00041096,60]
[381401559,1756186981601,-1000.0,0.00041096,60]
[381401560,1756186981641,-1000.0,0.00041096,60]
[381401561,1756186981681,-1000.0,0.00041096,60]
[381401562,1756186981721,-1000.0,0.00041096,60]
[381401563,1756186981761,-1000.0,0.00041096,60]
[381401564,1756186981807,-1000.0,0.00041096,60]
[381401565,1756186981852,-1000.0,0.00041096,60]
[381401566,1756186981894,-1000.0,0.00041096,60]
[381401567,1756186981934,-1000.0,0.00041096,60]
[381401568,1756186981975,-1000.0,0.00041096,60]
[381401569,1756186982016,-1000.0,0.00041096,60]
[381401570,1756186982056,-1000.0,0.00041096,60]
[381401571,1756186982096,-222.0,0.00041096,60]
[381401572,1756186982138,-1000.0,0.00041096,60]
[381401573,1756186982178,-1000.0,0.00041096,60]
[381401574,1756186982221,-999.0,0.00041123,120]
[381401575,1756186982264,-200.0,0.00041186,120]
[381401576,1756186982306,-407.98485592,0.000412,120]
[381401577,1756186982348,-4023.33,0.00041234,120]
[381401578,1756186982389,-999.0,0.0004126,120]
[381401579,1756186982431,-999.0,0.00041397,120]
[381401580,1756186982472,-1500.0,0.000415,120]
[381401581,1756186982513,-999.0,0.00041534,120]
[381401582,1756186982553,-168.0,0.000416,120]
[381401583,1756186982592,-1775.89,0.000416,120]
[381401584,1756186982631,-1775.89,0.000416,120]
[381401585,1756186982670,-1775.89,0.000416,120]
[381401586,1756186982708,-999.0,0.00041671,120]
[381401587,1756186982748,-151.0,0.000417,120]
[381401588,1756186982790,-1830.38392168,0.0004177,60]
[381401589,1756186982833,-1072.67148049,0.00041808,120]
[381401590,1756186982877,-2250.0,0.00042,120]
[381401591,1756186982921,-281.10694856,0.00042,120]
[381401592,1756186982968,-2500.0,0.00042,120]
[381401593,1756186983015,-500.0,0.00042,120]
[381401594,1756186983061,-6027.45226,0.00042,120]
[381401595,1756186983109,-834.09900575,0.00042,120]
[381401596,1756186983155,-200.0,0.00042052,120]
[381401597,1756186983200,-612.48820269,0.00042121,120]
[381401598,1756186983245,-2140.0,0.000422,120]
[381401599,1756186983288,-3042.44934617,0.00042363,120]
[381401600,1756186983335,-2141.71687082,0.000424,120]
[381401601,1756186983381,-3000.0,0.0004244,60]
[381401602,1756186983426,-3299.69,0.00042465,120]
[381401603,1756186983477,-2500.0,0.000425,120]
[381401604,1756186983518,-626.57752204,0.000425,60]
[381401605,1756186983562,-195.32991888,0.000425,120]
[381401606,1756186983612,-168.0,0.000426,120]
[381401607,1756186983659,-533.81740684,0.00042714,60]
[381401608,1756186983703,-150.66375441,0.00042725,120]
[381401609,1756186983746,-186.14,0.0004274,91]
[381401610,1756186983791,-2409.39589003,0.000428,120]
[381401611,1756186983837,-1000.0,0.0004288,120]
[381401612,1756186983881,-200.0,0.00042918,120]
[381401613,1756186983926,-151.0,0.00043,120]
[381401614,1756186984228,-339.4358635,0.00043,120]
[381401615,1756186984273,-297.33122628,0.00043,120]
[381401616,1756186984317,-1174.31861206,0.00043,120]
[381401617,1756186984362,-311.29837273,0.00043,120]
[381401618,1756186984407,-235.25838606,0.00043,120]
[381401619,1756186984450,-226.10289271,0.00043,120]
[381401620,1756186984499,-4445.4188925,0.00043,120]
[381401621,1756186984542,-3000.0,0.00043,120]
[381401622,1756186984584,-2500.0,0.00043,120]
[381401623,1756186984626,-832.12,0.00043,120]
[381401624,1756186984671,-2500.0,0.000432,120]
[381401625,1756186984713,-4023.33,0.00043234,120]
[381401626,1756186984756,-150.0,0.00043273,120]
[381401627,1756186984800,-168.0,0.000435,120]
[381401628,1756186984842,-3000.0,0.00043536,60]
[381401629,1756186984886,-460.38669054,0.000437,120]
[381401630,1756186984933,-200.0,0.00043784,120]
[381401631,1756186984978,-460.6673512,0.000438,120]
[381401632,1756186985023,-3305.96773272,0.000438,90]
[381401633,1756186985067,-1161.0,0.000438,120]
[381401634,1756186985110,-150.0,0.00043821,120]
[381401635,1756186985152,-201.10947357,0.00044,120]
[381401636,1756186985195,-3096.9192109,0.00044,120]
[381401637,1756186985238,-1084.11240892,0.00044,120]
[381401638,1756186985286,-1609.55618684,0.00044,120]
[381401639,1756186985331,-3203.47680898,0.00044,120]
[381401640,1756186985374,-400.0,0.00044,120]
[381401641,1756186985422,-2500.0,0.00044,120]
[381401642,1756186985464,-500.0,0.00044,120]
[381401643,1756186985506,-1882.63,0.00044136,120]
[381401644,1756186985547,-1444.0,0.00044164,120]
[381401645,1756186985588,-1882.63,0.00044191,120]
[381401646,1756186985629,-151.0,0.000442,120]
[381401647,1756186985669,-4000.0,0.000442,120]
[381401648,1756186985709,-1882.63,0.00044246,120]
[381401649,1756186985750,-1882.63,0.00044301,120]
[381401650,1756186985792,-1882.63,0.00044356,120]
[381401651,1756186985836,-150.0,0.00044368,120]
[381401652,1756186985876,-2360.63987074,0.0004439,120]
[381401653,1756186985919,-168.0,0.000444,120]
[381401654,1756186985961,-20768.61312618,0.000444,120]
[381401655,1756186986001,-1882.63,0.0004441,120]
[381401656,1756186986042,-1882.63,0.00044465,120]
[381401657,1756186986085,-406.84728553,0.000445,120]
[381401658,1756186986128,-552.96619051,0.000445,120]
[381401659,1756186986170,-1882.63,0.0004452,120]
[381401660,1756186986213,-2511.61281045,0.00044535,120]
[381401661,1756186986254,-1882.63,0.00044575,120]
[381401662,1756186986295,-1882.63,0.0004463,120]
[381401663,1756186986337,-2221.27276916,0.00044632,60]
[381401664,1756186986380,-200.0,0.0004465,120]
[381401665,1756186986424,-3299.69,0.00044657,120]
[381401666,1756186986464,-1882.63,0.00044684,120]
[381401667,1756186986503,-1882.63,0.00044739,120]
[381401668,1756186986541,-1882.63,0.00044794,120]
[381401669,1756186986581,-1882.63,0.00044849,120]
[381401670,1756186986620,-3757.0,0.0004487,120]
[381401671,1756186986659,-1882.63,0.00044904,120]
[381401672,1756186986699,-150.0,0.00044916,120]
[381401673,1756186986741,-1882.63,0.00044958,120]
[381401674,1756186986783,-505.93050039,0.00045,120]
[381401675,1756186986823,-10164.22,0.00045,120]
[381401676,1756186986863,-4860.82,0.00045,120]
[381401677,1756186986903,-671.17972277,0.00045,120]
[381401678,1756186986942,-173.05879999,0.00045,120]
[381401679,1756186986983,-2292.82211424,0.00045,120]
[381401680,1756186987023,-525.605399,0.00045,120]
[381401681,1756186987062,-324.57787403,0.00045,120]
[381401682,1756186987112,-3270.04351261,0.00045,120]
[381401683,1756186987157,-204.25479635,0.00045,120]
[381401684,1756186987199,-830.64564671,0.00045,120]
[381401685,1756186987242,-2001.63247132,0.00045,120]
[381401686,1756186987282,-202.41878249,0.00045,120]
[381401687,1756186987320,-3016.76,0.00045,120]
[381401688,1756186987361,-4984.3,0.00045,120]
[381401689,1756186987404,-2128.79,0.00045,120]
[381401690,1756186987446,-538.56,0.00045,120]
[381401691,1756186987491,-20000.0,0.00045,120]
[381401692,1756186987532,-2788.0,0.00045,120]
[381401693,1756186987570,-6774.54654419,0.00045,120]
[381401694,1756186987609,-42500.0,0.00045,120]
[381401695,1756186987649,-522.33,0.00045,120]
[381401696,1756186987689,-1565.35784839,0.00045,120]
[381401697,1756186987728,-1852.48,0.00045,120]
[381401698,1756186987766,-3100.0,0.00045,120]
[381401699,1756186987812,-3000.0,0.00045,120]
[381401700,1756186987856,-2899.95,0.00045,120]
[381401701,1756186987897,-150.0,0.00045,120]
[381401702,1756186987938,-500.0,0.00045,120]
[381401703,1756186987979,-450.0,0.00045,120]
[381401704,1756186988021,-15000.0,0.00045,120]
[381401705,1756186988064,-150.0,0.00045,120]
[381401706,1756186988108,-1882.63,0.00045013,120]
[381401707,1756186988151,-1882.63,0.00045068,120]
[381401708,1756186988191,-541.318,0.000451,120]
[381401709,1756186988231,-541.319,0.000451,120]
[381401710,1756186988270,-541.318,0.000451,120]
[381401711,1756186988311,-541.319,0.000451,120]
[381401712,1756186988350,-541.319,0.000451,120]
[381401713,1756186988393,-1882.63,0.00045123,120]
[381401714,1756186988432,-1882.63,0.00045178,120]
[381401715,1756186988472,-3000.0,0.000452,120]
[381401716,1756186988958,-1882.63,0.00045232,120]
[381401717,1756186988997,-4023.33,0.00045234,120]
[381401718,1756186989035,-1882.63,0.00045287,120]
[381401719,1756186989076,-3012.54,0.000453,120]
[381401720,1756186989114,-168.0,0.000453,120]
[381401721,1756186989153,-1882.63,0.00045342,120]
[381401722,1756186989191,-1882.79193955,0.00045397,120]
[381401723,1756186989230,-3098.46,0.000454,120]
[381401724,1756186989270,-150.0,0.00045464,120]
[381401725,1756186989307,-807.05053285,0.00045479,120]
[381401726,1756186989346,-151.0,0.000455,120]
[381401727,1756186989386,-200.0,0.00045516,120]
[381401728,1756186989425,-151.0,0.00045599,117]
[381401729,1756186989462,-151.0,0.00045643,85]
[381401730,1756186989500,-600.0,0.00045643,85]
[381401731,1756186989538,-1724.77640354,0.000457,120]
[381401732,1756186989578,-725.80650012,0.00046,120]
[381401733,1756186989615,-2141.31308223,0.00046,120]